bitfinex/quotes_ETHUSD_20241124
["timestamp","ask_amount","ask_price","bid_price","bid_amount"]
[1732459553974,0.11177801,3318.0,3317.8,0.1]
[1732459554369,3.01359,3318.3,3317.8,2.51122]
[1732459554574,3.12527708,3318.2,3317.8,0.1]
[1732459554986,0.11157708,3318.2,3317.8,0.1]
[1732459555190,3.01345,3318.5,3317.9,0.251128]
[1732459555494,0.11157708,3318.4,3317.9,2.41114]
[1732459555706,3.12507708,3318.4,3317.9,2.41114]
[1732459556014,0.11157708,3318.4,3318.3,0.1]
[1732459556183,3.91161,3319.1,3318.5,0.1]
[1732459556381,0.11157708,3319.0,3318.7,0.1]
[1732459556586,0.11157708,3319.0,3318.7,2.761616]
[1732459556792,3.01271,3319.3,3318.7,2.761616]
[1732459556995,0.72595816,3319.2,3318.7,2.51055]
[1732459557216,3.73873816,3319.2,3318.7,2.51055]
[1732459557424,0.72595816,3319.2,3318.7,2.51055]
[1732459557707,0.72595816,3319.2,3318.7,0.1]
[1732459557929,0.72595816,3319.2,3318.8,2.41049]
[1732459558073,0.72595816,3319.2,3319.1,0.1]
[1732459558410,0.72595816,3319.2,3319.1,2.761332]
[1732459558613,3.0122,3319.9,3319.3,2.51011]
[1732459558918,0.71350205,3319.8,3319.4,2.41004]
[1732459559278,3.72575205,3319.8,3319.3,0.1]
[1732459559477,3.01232,3319.7,3319.3,0.1]
[1732459559676,3.72577205,3319.8,3319.3,0.1]
[1732459559990,3.12447231,3319.7,3319.3,0.1]
[1732459560328,3.01259,3319.4,3318.9,0.1]
[1732459560514,3.01273,3319.3,3319.1,0.1]
[1732459560688,3.01257,3319.5,3319.1,0.1]
[1732459560899,3.01289,3319.1,3318.9,0.1]
[1732459561223,0.11207231,3319.0,3318.9,0.1]
[1732459561510,3.01307,3318.9,3318.7,0.1]
[1732459561826,0.11229187,3318.8,3318.7,0.1]
[1732459562015,0.8987,3319.5,3318.7,0.1]
[1732459562016,3.01292,3319.1,3318.7,0.1]
[1732459562218,3.01307,3318.9,3318.7,0.1]
[1732459562514,6.02586,3319.1,3318.7,0.1]
[1732459562818,3.01295,3319.0,3318.7,0.1]
[1732459563124,0.11229187,3318.9,3318.7,0.1]
[1732459563427,3.91128,3319.5,3318.7,2.51057]
[1732459563428,3.01269,3319.3,3318.7,2.51057]
[1732459563711,0.11229187,3318.8,3318.7,2.51057]
[1732459563919,0.8987,3319.5,3319.0,0.1]
[1732459564086,0.9194,3319.8,3319.2,2.51017]
[1732459564289,6.94342,3320.1,3319.4,2.51003]
[1732459564501,0.59116381,3320.3,3319.8,2.40974]
[1732459564685,0.59116381,3320.3,3319.9,0.1]
[1732459564686,0.23,3320.3,3319.9,0.1]
[1732459564887,3.2415,3320.6,3320.1,0.1]
[1732459565215,0.924226,3320.6,3319.9,0.1]
[1732459565429,0.3935706,3320.5,3320.0,2.40963]
[1732459565584,3.4052406,3320.5,3319.9,0.1]
[1732459565785,3.0118,3320.3,3319.9,0.1]
[1732459566718,3.01211,3320.0,3319.5,0.1]
[1732459567303,3.0125,3319.5,3319.3,0.1]
[1732459567718,3.0125,3319.5,3319.0,0.8879]
[1732459567719,3.01283,3319.2,3318.7,0.1]
[1732459567918,3.01261,3319.4,3318.7,0.1]
[1732459568148,4.5231543,3319.6,3319.0,0.1]
[1732459568327,3.01225,3319.8,3319.2,0.1]
[1732459568497,0.59098332,3319.8,3318.9,0.1]
[1732459568849,3.01291,3319.1,3318.7,0.1]
[1732459569842,3.01295,3319.0,3318.7,0.1]
[1732459570214,3.01286,3319.1,3318.7,0.1]
[1732459571242,3.01311,3318.9,3318.7,0.1]
[1732459571439,3.01359,3318.3,3318.1,0.1]
[1732459571630,3.01359,3318.3,3317.9,0.1]
[1732459571810,3.01373,3318.2,3317.9,0.1]
[1732459572312,3.01354,3318.4,3317.7,0.1]
[1732459572826,3.01354,3318.4,3317.7,2.51125]
[1732459573039,3.0137,3318.2,3317.7,0.1]
[1732459573337,3.01369,3318.2,3317.7,0.1]
[1732459573542,3.01388,3318.0,3317.7,0.1]
[1732459573709,3.01379,3318.1,3317.7,0.1]
[1732459574225,3.0136,3318.3,3317.7,0.1]
[1732459574435,3.01401,3317.9,3317.7,0.1]
[1732459574620,3.01394,3318.0,3317.5,0.1]
[1732459575031,3.01442,3317.4,3317.2,0.1]
[1732459575243,3.01467,3317.2,3316.8,0.1]
[1732459575546,3.01466,3317.2,3316.6,0.9894]
[1732459575759,3.01474,3317.1,3316.6,0.9894]
[1732459576065,3.12640579,3317.1,3316.8,0.1]
[1732459576360,3.01477,3317.0,3316.8,0.1]
[1732459576506,3.12634579,3317.1,3316.8,0.1]
[1732459576852,0.11166579,3317.0,3316.8,0.1]
[1732459577256,3.12645579,3317.0,3316.8,0.1]
[1732459577578,0.11166579,3317.0,3316.8,0.1]
[1732459577906,3.0145,3317.3,3316.8,0.1]
[1732459578111,0.11166579,3316.9,3316.8,6.652556]
[1732459578350,3.01385,3318.1,3317.5,0.9894]
[1732459578513,3.01368,3318.2,3317.7,0.1]
[1732459578845,4.01881186,3318.3,3317.7,0.1]
[1732459579057,0.11118422,3318.1,3317.7,2.51129]
[1732459579253,3.24314,3318.8,3318.3,0.1]
[1732459579415,0.23,3318.8,3318.3,0.1]
[1732459579609,3.24314,3318.8,3318.3,0.1]
[1732459579925,0.23,3318.8,3318.7,0.1]
[1732459580767,0.23,3318.8,3318.5,0.1]
[1732459581445,3.24317,3318.8,3318.5,0.1]
[1732459581632,3.01326,3318.7,3318.3,0.1]
[1732459581956,3.01326,3318.7,3317.9,2.41114]
[1732459581957,3.0134,3318.5,3317.9,0.1]
[1732459582127,3.01365,3318.3,3317.9,0.1]
[1732459582333,3.01378,3318.1,3317.9,0.1]
[1732459582731,3.01359,3318.3,3317.9,0.1]
[1732459582929,3.0135,3318.4,3317.9,2.51114]
[1732459583163,3.0135,3318.4,3317.9,0.1]
[1732459583467,3.97104,3318.6,3317.9,0.1]
[1732459583636,0.397102,3318.5,3317.9,0.1]
[1732459583823,3.01363,3318.3,3317.9,0.1]
[1732459584254,3.01371,3318.2,3317.9,0.1]
[1732459584466,3.01363,3318.3,3317.9,0.1]
[1732459584634,0.23,3318.8,3318.5,0.1]
[1732459584958,3.01342,3318.5,3318.2,0.9591]
[1732459585132,3.01342,3318.5,3318.1,0.1]
[1732459585461,3.01354,3318.4,3317.9,0.1]
[1732459585767,3.93692,3318.4,3317.9,0.1]
[1732459585926,3.01352,3318.4,3317.9,0.1]
[1732459586636,3.01374,3318.2,3317.9,0.1]
[1732459586839,0.58939095,3318.6,3317.9,0.1]
[1732459587058,3.01367,3318.3,3317.9,0.1]
[1732459587271,3.0135,3318.4,3317.9,0.1]
[1732459587428,3.01374,3318.2,3317.9,0.1]
[1732459587764,0.78003464,3318.6,3317.9,0.1]
[1732459587973,3.0141,3317.8,3317.6,0.1]
[1732459588138,3.01398,3317.9,3317.6,0.1]
[1732459588535,3.01411,3317.8,3317.4,0.9591]
[1732459588753,3.01416,3317.7,3317.3,0.1]
[1732459589053,3.01422,3317.7,3317.1,2.51174]
[1732459589255,1.57387997,3318.0,3317.5,0.1]
[1732459589437,3.01388,3318.0,3317.6,0.1]
[1732459589642,0.11073099,3317.9,3317.7,2.41126]
[1732459589846,3.97204,3318.4,3317.8,2.51123]
[1732459590064,0.11073099,3318.3,3317.8,0.1]
[1732459590366,3.01368,3318.2,3317.8,0.1]
[1732459590761,0.11073099,3318.1,3317.8,0.1]
[1732459591065,0.11073099,3318.1,3317.4,0.1]
[1732459591258,3.01402,3317.9,3317.4,3.1]
[1732459591562,3.01408,3317.8,3317.4,0.1]
[1732459591779,3.01431,3317.6,3317.3,0.9041]
[1732459591981,3.12478099,3317.8,3317.2,3.1]
[1732459592126,2.02559553,3318.4,3317.2,3.1]
[1732459592127,3.01374,3318.2,3317.8,0.1]
[1732459592337,3.62255048,3318.4,3317.8,3.41533]
[1732459592534,3.62255048,3318.4,3317.9,2.41116]
[1732459592760,3.01341,3318.5,3317.9,2.41116]
[1732459592945,0.9585,3319.1,3318.1,0.1]
[1732459593151,0.9585,3319.1,3317.9,3.0]
[1732459593152,0.59220919,3319.0,3318.5,1.0041]
[1732459593378,0.59220919,3319.0,3318.5,3.41477]
[1732459593559,0.59220919,3319.0,3318.9,0.1]
[1732459594280,0.59220919,3319.0,3318.7,0.1]
[1732459594484,0.59220919,3319.0,3318.7,2.51053]
[1732459594647,0.59220919,3319.0,3318.7,0.1]
[1732459595736,3.0131,3318.9,3318.2,2.5109]
[1732459596262,3.01342,3318.5,3318.1,0.9041]
[1732459596464,3.01342,3318.5,3318.0,0.1]
[1732459596670,3.01355,3318.4,3318.0,0.1]
[1732459596986,3.01342,3318.5,3318.0,0.1]
[1732459597133,3.01308,3318.9,3318.3,0.1]
[1732459597334,0.23,3319.1,3318.5,1.0041]
[1732459597562,0.23,3319.1,3318.8,2.41044]
[1732459597736,0.23,3319.1,3318.9,2.41042]
[1732459597936,0.23,3319.4,3319.1,0.1]
[1732459598159,0.23,3319.7,3319.4,0.1]
[1732459598484,0.23,3320.2,3319.6,0.1]
[1732459598633,0.23,3320.5,3320.0,3.41368]
[1732459598948,0.23,3320.6,3320.1,2.40956]
[1732459599152,0.36029865,3320.5,3320.1,2.40956]
[1732459599483,0.23,3320.7,3320.5,2.40925]
[1732459599782,3.01142,3320.7,3320.2,3.1]
[1732459599978,0.23,3321.2,3320.5,2.50925]
[1732459600185,0.10735878,3320.6,3320.5,2.50925]
[1732459600388,0.23,3321.2,3320.3,0.1]
[1732459600683,3.01138,3320.8,3320.3,0.1]
[1732459600903,0.301138,3320.7,3320.3,0.1]
[1732459601186,3.01151,3320.6,3320.3,0.1]
[1732459601472,0.10735878,3320.6,3320.1,0.1]
[1732459601640,3.01165,3320.5,3320.1,0.1]
[1732459601974,0.10994307,3320.4,3320.1,0.1]
[1732459602170,3.12165307,3320.4,3320.1,0.1]
[1732459602475,0.10994307,3320.3,3320.1,0.1]
[1732459602876,0.10994307,3320.3,3319.9,2.40971]
[1732459602877,0.42210838,3320.3,3319.9,0.1]
[1732459603050,0.10994307,3320.3,3320.1,2.50955]
[1732459603250,3.01141,3320.7,3320.1,0.1]
[1732459603575,0.41095775,3320.6,3320.1,0.1]
[1732459603780,0.10981675,3320.6,3320.3,0.1]
[1732459603942,0.10981675,3320.6,3320.5,0.1]
[1732459604137,0.23,3321.2,3320.7,2.50911]
[1732459604393,3.01111,3321.1,3320.7,0.1]
[1732459604678,0.10981675,3321.0,3320.3,0.1]
[1732459604838,3.01148,3320.7,3320.3,0.1]
[1732459605038,3.01155,3320.6,3320.3,0.1]
[1732459605240,3.01177,3320.3,3320.1,0.1]
[1732459605714,3.01165,3320.5,3320.1,0.1]
[1732459605865,0.10993371,3320.2,3320.1,0.1]
[1732459606061,3.01171,3320.4,3320.1,0.1]
[1732459606284,0.10993371,3320.3,3320.1,0.1]
[1732459606888,0.59619634,3321.1,3320.1,0.1]
[1732459606889,3.01111,3321.1,3320.5,0.1]
[1732459607080,3.01088,3321.3,3320.6,0.8897]
[1732459607276,0.10988225,3321.0,3320.7,0.1]
[1732459607587,0.8771,3322.0,3321.1,0.1]
[1732459607768,3.01065,3321.6,3321.1,0.1]
[1732459607966,0.301065,3321.5,3321.1,0.1]
[1732459608200,0.41094725,3321.5,3321.1,0.1]
[1732459608516,0.10988225,3321.5,3321.4,0.1]
[1732459609170,3.01068,3321.5,3321.1,0.1]
[1732459609370,0.10988225,3321.4,3321.2,0.1]
[1732459609572,3.01065,3321.6,3321.2,0.1]
[1732459609785,3.01065,3321.6,3321.4,0.1]
[1732459609986,0.10988225,3321.5,3321.4,0.1]
[1732459610399,0.10988225,3321.5,3321.2,0.1]
[1732459610717,0.10988225,3321.5,3321.4,0.1]
[1732459611121,0.10988225,3321.5,3321.4,5.50862]
[1732459611271,0.23,3322.0,3321.7,0.1]
[1732459611474,0.23,3322.1,3321.9,0.1]
[1732459611710,3.01035,3321.9,3321.7,0.1]
[1732459611972,3.01041,3321.8,3321.7,0.1]
[1732459612172,3.01059,3321.6,3321.3,0.1]
[1732459612412,3.612586,3321.7,3321.5,0.1]
[1732459612616,3.0102,3322.1,3321.3,0.1]
[1732459612787,0.8771,3321.6,3321.0,0.8897]
[1732459612997,3.01077,3321.4,3320.7,0.1]
[1732459613214,3.01125,3320.9,3320.6,0.8897]
[1732459613418,3.0105,3321.7,3321.3,0.1]
[1732459613589,3.01089,3321.3,3321.1,0.1]
[1732459613785,0.41176,3321.7,3321.3,0.1]
[1732459613989,3.01065,3321.6,3321.3,0.1]
[1732459614628,3.24042,3321.8,3320.5,0.91980977]
[1732459614629,3.01068,3321.5,3320.5,0.03010977]
[1732459614831,0.8771,3321.5,3320.9,0.1]
[1732459614986,0.8771,3321.5,3320.7,0.8897]
[1732459614987,3.01108,3321.1,3320.7,0.9897]
[1732459615191,0.301108,3321.0,3320.7,0.9897]
[1732459615411,3.0109,3321.3,3320.7,0.9897]
[1732459615619,3.01098,3321.2,3320.7,0.9897]
[1732459615927,3.01072,3321.5,3321.2,0.1]
[1732459616337,0.70345745,3321.5,3321.2,0.1]
[1732459616495,3.01069,3321.5,3321.2,0.1]
[1732459616968,3.0106,3321.6,3321.1,3.0]
[1732459616969,3.24045,3321.8,3321.4,0.1]
[1732459617136,3.24045,3321.8,3321.4,0.9897]
[1732459617313,3.24045,3321.8,3321.6,0.1]
[1732459618102,3.0105,3321.7,3321.6,0.1]
[1732459618510,3.01068,3321.5,3321.4,0.9897]
[1732459618711,0.23,3321.8,3321.4,0.9897]
[1732459618712,3.24044,3321.8,3321.4,0.9897]
[1732459619007,0.23,3321.8,3321.4,0.9897]
[1732459619252,3.01051,3321.7,3321.4,0.9897]
[1732459619609,0.10685581,3321.6,3321.4,0.9897]
[1732459619809,3.01041,3321.8,3321.4,0.9897]
[1732459620015,0.10685581,3321.7,3321.6,0.1]
[1732459620211,3.01068,3321.5,3321.3,0.1]
[1732459620440,0.10685581,3321.4,3321.1,0.1]
[1732459620637,3.11765581,3321.4,3321.3,0.1]
[1732459620857,0.10685581,3321.4,3321.3,0.1]
[1732459621175,3.01077,3321.4,3321.3,0.1]
[1732459621327,3.11762581,3321.4,3321.3,0.1]
[1732459621524,3.01095,3321.2,3321.1,0.1]
[1732459621770,3.01122,3321.0,3320.9,0.1]
[1732459621984,3.01132,3320.8,3320.7,0.9897]
[1732459622331,3.01132,3320.8,3320.7,0.1]
[1732459622531,3.11817581,3320.8,3320.7,0.1]
[1732459622926,3.01156,3320.6,3320.4,0.1]
[1732459623177,3.01159,3320.5,3320.4,0.1]
[1732459623356,3.01168,3320.4,3320.3,0.9897]
[1732459623559,3.01186,3320.2,3320.1,0.1]
[1732459623758,3.01178,3320.3,3320.1,0.1]
[1732459623960,3.01168,3320.4,3320.1,0.1]
[1732459623961,0.10685581,3320.2,3320.1,0.1]
[1732459624705,3.01186,3320.2,3320.1,0.1]
[1732459624905,3.11855642,3320.2,3320.1,0.1]
[1732459625202,1.64542806,3320.2,3318.8,0.9322]
[1732459625407,3.01306,3318.9,3318.5,0.9322]
[1732459625707,0.10614791,3318.8,3318.5,0.9322]
[1732459625872,0.10614791,3318.8,3318.6,2.4407312]
[1732459626074,3.01268,3319.3,3318.7,2.74787312]
[1732459626293,0.9257,3319.9,3318.6,2.41063]
[1732459626294,3.11897791,3319.2,3318.6,2.41063]
[1732459626603,0.10614791,3319.2,3318.9,2.41037]
[1732459626964,3.0129,3319.1,3318.5,0.9322]
[1732459627163,3.11904791,3319.1,3318.5,1.266504]
[1732459627364,3.01331,3318.6,3318.5,0.9322]
[1732459627594,3.01331,3318.6,3317.7,2.41129]
[1732459627595,3.01331,3318.6,3318.1,0.9322]
[1732459628080,0.10614791,3318.5,3318.1,3.37334311]
[1732459628308,3.01305,3318.9,3318.3,2.41087]
[1732459628474,0.10614791,3318.4,3318.2,0.33733431]
[1732459628682,3.01292,3319.1,3318.1,0.9322]
[1732459628877,0.10614791,3319.0,3318.4,2.41075]
[1732459629100,0.10614791,3319.0,3318.8,2.41049]
[1732459629281,0.10614791,3319.0,3318.6,3.3428]
[1732459629494,3.0128,3319.2,3318.6,3.3428]
[1732459629677,0.10614791,3318.9,3318.8,2.41047]
[1732459630007,0.23,3319.6,3318.8,0.03012751]
[1732459630226,0.10614791,3318.9,3318.8,5.44062452]
[1732459630367,0.23,3319.6,3319.5,2.41]
[1732459630703,3.24178,3320.3,3319.6,0.9322]
[1732459630908,3.01203,3320.1,3319.6,0.9322]
[1732459631210,0.10614791,3320.2,3319.6,0.9322]
[1732459631509,0.10614791,3320.1,3319.7,2.40985]
[1732459631712,3.24178,3320.3,3319.7,2.40985]
[1732459631878,0.10614791,3320.0,3319.8,2.40978]
[1732459632080,0.23,3320.3,3319.6,0.9322]
[1732459632279,0.10614791,3320.2,3319.7,2.40984]
[1732459632481,0.10614791,3320.2,3319.7,0.334204]
[1732459632713,0.10614791,3320.2,3319.6,0.9322]
[1732459632912,3.01205,3320.0,3319.6,0.9322]
[1732459633210,3.01252,3319.5,3319.2,0.9322]
[1732459633368,3.01261,3319.4,3318.8,3.3427]
[1732459633572,3.01234,3319.7,3318.9,2.41043]
[1732459633807,0.10614791,3319.3,3318.8,0.9322]
[1732459634006,3.01278,3319.2,3318.8,0.9322]
[1732459634164,0.10599313,3319.2,3318.4,0.9322]
[1732459634371,3.01316,3318.8,3318.4,0.9322]
[1732459634869,0.10577733,3318.7,3318.4,1.266512]
[1732459635070,3.01315,3318.8,3318.4,0.9322]
[1732459635303,3.01315,3318.8,3318.2,3.34314]
[1732459635304,0.10519102,3318.7,3318.2,3.34314]
[1732459636423,0.10519102,3318.7,3318.4,2.41076]
[1732459636586,0.10519102,3318.7,3318.6,2.41065]
[1732459636785,3.01264,3319.4,3318.6,2.41065]
[1732459637024,3.01242,3319.6,3319.0,2.41029]
[1732459637222,0.10519102,3319.3,3318.9,0.0301274]
[1732459637375,3.01274,3319.3,3318.8,0.9322]
[1732459637578,0.10519102,3319.2,3318.8,0.9322]
[1732459637810,3.93795,3319.8,3319.1,2.41026]
[1732459638011,4.16795,3319.8,3319.1,2.41026]
[1732459638413,3.01242,3319.6,3318.9,2.41039]
[1732459638627,3.01232,3319.7,3318.9,2.41039]
[1732459638628,0.23,3319.8,3319.2,2.41016]
[1732459638937,0.23,3319.8,3319.7,2.40985]
[1732459639226,0.23,3319.8,3319.4,0.9322]
[1732459639227,0.23,3320.1,3320.0,2.40963]
[1732459639378,0.23,3320.8,3319.8,2.40978]
[1732459639576,3.01141,3320.7,3319.9,0.9322]
[1732459639888,3.01141,3320.7,3320.0,2.40957]
[1732459640090,3.01141,3320.7,3319.9,3.3419]
[1732459640332,0.23,3321.0,3319.6,3.3421]
[1732459640333,3.01177,3320.3,3319.6,3.3421]
[1732459640619,3.01239,3319.7,3319.3,0.9322]
[1732459640938,3.01268,3319.3,3318.9,0.9322]
[1732459641431,4.16805,3319.7,3318.9,2.41039]
[1732459641580,1.1557,3319.7,3318.7,2.41052]
[1732459641786,3.24233,3319.7,3319.0,2.4103]
[1732459642123,3.24233,3319.7,3319.1,2.41022]
[1732459642124,0.23,3319.7,3319.1,2.41022]
[1732459642340,3.01243,3319.6,3319.0,2.41034]
[1732459642631,3.24237,3319.7,3318.8,2.41046]
[1732459642632,3.01253,3319.5,3318.8,2.41046]
[1732459642782,3.01253,3319.5,3318.8,2.41045]
[1732459642983,3.01253,3319.5,3319.0,2.41035]
[1732459643222,3.24233,3319.7,3318.8,2.41045]
[1732459643464,0.23,3319.7,3319.1,2.41029]
[1732459643755,0.23,3319.7,3319.6,2.40992]
[1732459643951,0.23,3320.3,3319.6,2.40992]
[1732459644150,0.23,3320.3,3319.6,0.03011948]
[1732459644369,0.23,3320.3,3320.2,2.40949]
[1732459644537,0.23,3320.9,3320.5,2.40927]
[1732459644851,0.23,3320.9,3320.2,2.40948]
[1732459644852,3.24129,3320.9,3320.2,2.40948]
[1732459645054,0.23,3320.9,3320.3,0.03011447]
[1732459645208,0.23,3320.9,3319.9,2.40971]
[1732459645209,0.23,3320.9,3320.0,0.030113]
[1732459645548,0.23,3320.9,3320.6,3.28775]
[1732459645748,0.23,3320.9,3320.6,0.8786]
[1732459646069,3.01133,3320.8,3320.2,0.8786]
[1732459646228,3.01142,3320.7,3320.2,0.8786]
[1732459646431,3.01142,3320.7,3320.2,3.28807]
[1732459646754,0.23,3320.9,3320.3,2.4094]
[1732459647116,3.01143,3320.7,3320.2,0.8786]
[1732459647310,3.866546,3320.9,3320.1,2.40954]
[1732459647559,3.01142,3320.7,3320.2,2.40947]
[1732459647849,6.02292,3320.7,3320.0,2.40958]
[1732459648234,3.01142,3320.7,3320.0,2.40958]
[1732459648552,0.23,3320.9,3320.0,2.40958]
[1732459648712,3.01155,3320.6,3320.0,2.40958]
[1732459649110,3.01161,3320.5,3319.9,3.28829]
[1732459649356,3.11790327,3320.5,3319.9,3.28829]
[1732459649555,0.10629327,3320.5,3319.9,0.8786]
[1732459649767,6.02306,3320.6,3320.0,2.40957]
[1732459649982,0.10621825,3320.4,3320.0,2.40957]
[1732459650183,0.10621825,3320.4,3319.9,0.8786]
[1732459650184,3.01198,3320.1,3319.9,0.8786]
[1732459650354,3.01198,3320.1,3319.4,5.69866]
[1732459650532,3.0122,3319.9,3319.4,0.8786]
[1732459650733,3.01237,3319.7,3319.4,0.8786]
[1732459651089,3.01259,3319.4,3319.1,0.8786]
[1732459651378,3.01242,3319.6,3319.0,2.41031]
[1732459651562,0.10599782,3319.3,3318.9,0.48511023]
[1732459651745,3.01255,3319.5,3318.9,2.89553023]
[1732459651949,0.10599782,3319.2,3318.9,2.41042]
[1732459652153,0.9237,3319.8,3318.8,0.8786]
[1732459652359,0.10599782,3319.1,3318.9,0.03012737]
[1732459652564,3.01246,3319.6,3319.0,2.41036]
[1732459652762,3.93601,3319.8,3319.2,2.41014]
[1732459653037,3.01241,3319.6,3318.9,2.4104]
[1732459653238,3.01264,3319.4,3318.8,0.8786]
[1732459653438,1.317301,3319.8,3318.8,0.8786]
[1732459653742,3.01273,3319.3,3318.8,0.8786]
[1732459654963,3.0125,3319.5,3318.8,0.8786]
[1732459655164,3.01266,3319.4,3318.8,0.8786]
[1732459655674,3.0121,3320.0,3318.3,3.74544594]
[1732459655675,3.0135,3318.4,3318.3,3.74544594]
[1732459655837,3.01364,3318.3,3317.8,0.8786]
[1732459656034,3.24304,3318.9,3317.5,0.8786]
[1732459656035,3.93692,3318.7,3317.5,0.8786]
[1732459656281,3.01413,3317.7,3317.5,0.8786]
[1732459656491,0.9237,3318.7,3317.1,0.8786]
[1732459656492,3.01423,3317.6,3317.1,0.8786]
[1732459656787,3.93701,3318.7,3317.1,0.8786]
[1732459656788,3.01414,3317.7,3317.1,0.8786]
[1732459657343,3.01403,3317.9,3317.1,0.8786]
[1732459657542,0.18772856,3318.6,3317.1,0.8786]
[1732459657543,3.01406,3317.8,3317.1,0.8786]
[1732459657897,3.0143,3317.6,3317.1,0.8786]
[1732459658338,3.01464,3317.2,3316.7,0.8786]
[1732459658539,3.01475,3317.1,3316.7,0.8786]
[1732459658851,3.01477,3317.0,3316.7,0.8786]
[1732459659290,0.9237,3317.2,3316.1,0.8786]
[1732459659579,1.1537,3317.2,3316.4,2.41218]
[1732459659799,0.10570695,3317.1,3316.9,0.8786]
[1732459659946,0.10570695,3317.1,3317.0,2.41181]
[1732459660147,0.10570695,3317.1,3317.0,0.570231]
[1732459660389,0.23,3317.2,3316.9,0.8786]
[1732459660605,0.10426618,3317.1,3316.4,2.41223]
[1732459660763,0.23,3317.4,3316.7,2.41202]
[1732459661085,0.10332714,3317.0,3316.6,2.36209]
[1732459661245,0.23,3317.4,3316.7,2.41201]
[1732459661448,0.23,3317.4,3316.7,2.41196]
[1732459661654,0.10332714,3317.3,3316.9,2.41183]
[1732459661888,0.10332714,3317.3,3316.7,2.41203]
[1732459662045,0.10332714,3317.3,3317.2,3.29027]
[1732459662276,0.23,3317.4,3317.3,2.41159]
[1732459663124,0.33343049,3317.4,3317.2,0.8786]
[1732459663578,0.33343049,3317.4,3316.8,2.41193]
[1732459664221,3.68263654,3317.4,3316.7,6.34148]
[1732459664426,3.01454,3317.3,3316.7,0.9295]
[1732459664620,3.0146,3317.2,3316.5,2.41217]
[1732459664780,3.11811034,3317.2,3316.5,2.41217]
[1732459664979,0.10351034,3317.2,3316.4,3.0]
[1732459665204,0.10351034,3317.2,3316.3,0.9295]
[1732459665205,0.10351034,3317.2,3316.9,2.41188]
[1732459665420,0.23,3317.4,3317.0,2.41179]
[1732459665589,0.10338352,3317.1,3317.0,2.41179]
[1732459665787,0.23,3317.4,3317.0,2.41179]
[1732459666122,0.10338352,3317.1,3317.0,2.41179]
[1732459666279,0.23,3317.4,3317.3,2.41159]
[1732459667039,0.33338352,3317.4,3317.3,2.41159]
[1732459667384,0.33338352,3317.4,3317.0,0.9295]
[1732459667591,0.33338352,3317.4,3316.9,3.0]
[1732459667922,0.33338352,3317.4,3316.8,5.41195]
[1732459667923,3.34779352,3317.4,3316.8,5.41195]
[1732459668134,3.01453,3317.3,3316.7,3.0]
[1732459668288,3.01453,3317.3,3316.7,2.41203]
[1732459668484,0.10348686,3317.2,3316.7,2.41203]
[1732459668697,3.11812686,3317.2,3316.6,1.41205]
[1732459668929,3.11812686,3317.2,3316.6,2.41206]
[1732459669850,0.10348686,3317.2,3316.7,2.41203]
[1732459670007,0.10348686,3317.2,3316.6,2.41205]
[1732459670205,3.01464,3317.2,3316.5,6.046288]
[1732459670437,0.10330835,3317.1,3316.5,6.046288]
[1732459670899,3.01477,3317.0,3316.5,3.0]
[1732459671332,0.10330835,3316.9,3316.5,3.0]
[1732459671528,3.11824835,3316.9,3316.4,0.9295]
[1732459671832,3.0151,3316.7,3316.1,3.0]
[1732459672032,3.2451,3316.7,3316.0,2.41249]
[1732459672250,3.11816949,3316.6,3316.0,2.41249]
[1732459672416,0.10297949,3316.6,3316.0,2.41254]
[1732459672637,0.10297949,3316.6,3316.3,2.4123]
[1732459672805,0.10297949,3316.6,3316.5,2.41218]
[1732459673008,0.10297949,3316.6,3316.5,3.37183191]
[1732459673204,0.23,3316.7,3316.6,5.4121]
[1732459673436,0.23,3316.7,3316.6,6.287478]
[1732459676414,0.925,3317.7,3316.6,7.24712396]
[1732459676415,0.23,3317.7,3316.6,7.24712396]
[1732459676652,0.23,3318.1,3317.3,2.41159]
[1732459676943,3.01409,3317.8,3317.4,0.241159]
[1732459677246,3.01442,3317.4,3316.8,2.41194]
[1732459677466,0.23,3317.3,3317.0,2.4118]
[1732459677666,0.23,3317.3,3316.7,3.0]
[1732459677957,0.10322378,3317.2,3316.8,2.4119]
[1732459678137,0.23,3317.3,3317.0,2.41181]
[1732459678334,0.10321908,3317.2,3317.0,2.41181]
[1732459678651,0.23,3317.3,3317.0,2.41181]
[1732459678858,0.10321908,3317.1,3317.0,2.41181]
[1732459679325,0.23,3317.3,3317.0,2.41181]
[1732459679523,0.23,3317.3,3316.8,5.41193]
[1732459679524,0.10315332,3317.2,3316.8,5.41193]
[1732459680043,0.10315332,3317.1,3316.8,5.41193]
[1732459680415,0.23,3317.3,3316.7,2.41202]
[1732459680416,3.24451,3317.3,3316.7,2.41202]
[1732459680621,0.10313923,3317.0,3316.7,2.41202]
[1732459680820,3.01474,3317.1,3316.5,2.41215]
[1732459681061,0.10312044,3316.9,3316.3,0.9295]
[1732459681326,0.925,3317.0,3316.0,0.30773332]
[1732459681327,0.925,3317.0,3316.4,2.41224]
[1732459681511,0.925,3317.0,3316.2,2.41235]
[1732459681512,3.01498,3316.8,3316.2,2.41235]